[Event "European Womens-ch 2025"]
[Site "Rhodes"]
[Date "2025.04.11"]
[Round "11.35"]
[White "Sandu, Mihaela"]
[Black "Vidic, Teja"]
[Result "1/2-1/2"]
[Annotator "ChessBase"]
[ECO "C24"]
[WhiteElo "2230"]
[BlackElo "2100"]
[PlyCount "123"]
[EventDate "2025.03.29"]
[EventType "swiss"]
[EventCountry "GRE"]
[SourceTitle "playchess.com"]
[Source "ChessBase"]
[SourceQuality "1"]
[TimeControl "40/5400+30:1800+30"]

1. e4 {[%emt 0:01:31]} e5 {[%emt 0:00:05]} 2. Nf3 {[%emt 0:00:04]} Nc6 {[%emt 0:00:04]} 3. Bc4 {[%emt 0:00:14]} Nf6 {[%emt 0:00:07]} 4. d3 {[%emt 0:00:08]} d5 {[%emt 0:00:04]} 5. exd5 {[%emt 0:00:23]} Nxd5 {[%emt 0:00:06]} 6. O-O {[%emt 0:02:04]} Be7 {[%emt 0:00:04]} 7. Re1 {[%emt 0:06:15]} f6 {[%emt 0:00:06]} 8. d4 {[%emt 0:02:50]} Nb6 {[%emt 0:00:05]} 9. Bb5 {[%emt 0:00:10]} O-O {[%emt 0:00:19]} 10. c3 {[%emt 0:18:24]} Bg4 {[%emt 0:01:23]} 11. Nbd2 {[%emt 0:00:51]} exd4 {[%emt 0:12:44]} 12. Qb3+ {[%emt 0:04:26]} Kh8 {[%emt 0:00:14]} 13. Bxc6 {[%emt 0:00:17]} bxc6 {[%emt 0:00:05]} 14. Nxd4 {[%emt 0:00:22]} Qd7 {[%emt 0:06:56]} 15. h3 {[%emt 0:02:10]} Bh5 {[%emt 0:00:43]} 16. Qe6 {[%emt 0:00:22]} Bd6 {[%emt 0:03:48]} 17. Qxd7 {[%emt 0:00:57]} Nxd7 {[%emt 0:00:05]} 18. Nc4 {[%emt 0:08:29]} Rfe8 {[%emt 0:03:32]} 19. Be3 {[%emt 0:01:00]} Bf8 {[%emt 0:04:46]} 20. Nxc6 {[%emt 0:07:33]} Nc5 {[%emt 0:03:18]} 21. b4 {[%emt 0:04:19]} Nd3 {[%emt 0:05:34]} 22. Reb1 {[%emt 0:00:05]} f5 {[%emt 0:00:14]} 23. Nb2 {[%emt 0:11:30]} f4 {[%emt 0:05:19]} 24. Bd4 {[%emt 0:00:19]} Nxb2 {[%emt 0:00:27]} 25. Rxb2 {[%emt 0:00:05]} Re6 {[%emt 0:00:17]} 26. Ne5 {[%emt 0:07:14]} Rae8 {[%emt 0:15:56]} 27. Nd3 {[%emt 0:00:48]} Bd6 {[%emt 0:01:06]} 28. Bc5 {[%emt 0:00:17]} g5 {[%emt 0:00:43]} 29. Bxd6 {[%emt 0:01:56]} cxd6 {[%emt 0:02:24]} 30. Rd2 {[%emt 0:01:26]} Re2 {[%emt 0:07:24]} 31. Rxe2 {[%emt 0:07:57]} Rxe2 {[%emt 0:00:44]} 32. Ne1 {[%emt 0:00:02]} Kg7 {[%emt 0:05:48]} 33. a4 {[%emt 0:00:12]} Kf6 {[%emt 0:00:16]} 34. Rd1 {[%emt 0:06:52]} Ke6 {[%emt 0:01:55]} 35. a5 {[%emt 0:01:02]} Re4 {[%emt 0:04:09]} 36. f3 {[%emt 0:00:52]} Rc4 {[%emt 0:00:40]} 37. Nc2 {[%emt 0:00:34]} a6 {[%emt 0:07:12]} 38. Nd4+ {[%emt 0:00:13]} Ke5 {[%emt 0:00:08]} 39. Ne2 {[%emt 0:01:20]} Be8 {[%emt 0:05:10]} 40. Kf2 {[%emt 0:00:00]} Bb5 {[%emt 0:00:00]} 41. Ke1 {[%emt 0:05:39]} Rc8 {[%emt 0:06:58]} 42. Kd2 {[%emt 0:00:06]} h5 {[%emt 0:06:13]} 43. Nd4 {[%emt 0:01:04]} Bc4 {[%emt 0:02:33]} 44. Rb1 {[%emt 0:04:17]} Kf6 {[%emt 0:01:48]} 45. Nc2 {[%emt 0:07:44]} g4 {[%emt 0:03:29]} 46. hxg4 {[%emt 0:02:37]} hxg4 {[%emt 0:00:06]} 47. Na3 {[%emt 0:00:41]} Bd5 {[%emt 0:02:32]} 48. b5 {[%emt 0:01:14]} axb5 {[%emt 0:00:26]} 49. Nxb5 {[%emt 0:02:02]} gxf3 {[%emt 0:00:29]} 50. gxf3 {[%emt 0:00:04]} Ra8 {[%emt 0:06:21]} 51. Ra1 {[%emt 0:00:05]} Bxf3 {[%emt 0:03:20]} 52. a6 {[%emt 0:00:03]} Ke7 {[%emt 0:00:33]} 53. a7 {[%emt 0:04:10]} Kd7 {[%emt 0:00:04]} 54. Rg1 {[%emt 0:00:54]} Be4 {[%emt 0:03:27]} 55. Rg4 {[%emt 0:02:26]} Kc6 {[%emt 0:01:08]} 56. Nd4+ {[%emt 0:02:08]} Kb6 {[%emt 0:00:12]} 57. Rxf4 {[%emt 0:00:03]} d5 {[%emt 0:00:54]} 58. Rf6+ {[%emt 0:01:59]} Kxa7 {[%emt 0:02:10]} 59. Nb5+ {[%emt 0:02:16]} Kb7 {[%emt 0:00:06]} 60. c4 {[%emt 0:00:29]} Ra6 {[%emt 0:02:11]} 61. Rf4 {[%emt 0:03:55]} Rc6 {[%emt 0:01:18]} 62. cxd5 {[%emt 0:00:46]} 1/2-1/2

[Event "European Womens-ch 2025"]
[Site "Rhodes"]
[Date "2025.04.11"]
[Round "11.36"]
[White "Berke, Ana"]
[Black "Lehaci, Miruna-Daria"]
[Result "1/2-1/2"]
[Annotator "ChessBase"]
[ECO "B55"]
[WhiteElo "2119"]
[BlackElo "2212"]
[PlyCount "100"]
[EventDate "2025.03.29"]
[EventType "swiss"]
[EventCountry "GRE"]
[SourceTitle "playchess.com"]
[Source "ChessBase"]
[SourceQuality "1"]
[TimeControl "40/5400+30:1800+30"]

1. e4 {[%emt 0:00:06]} c5 {[%emt 0:00:12]} 2. Nf3 {[%emt 0:00:06]} d6 {[%emt 0:00:05]} 3. d4 {[%emt 0:00:36]} cxd4 {[%emt 0:00:05]} 4. Nxd4 {[%emt 0:00:04]} Nf6 {[%emt 0:00:05]} 5. f3 {[%emt 0:00:05]} e5 {[%emt 0:00:17]} 6. Nb3 {[%emt 0:00:07]} Be7 {[%emt 0:00:16]} 7. c4 {[%emt 0:00:18]} a5 {[%emt 0:00:18]} 8. Be3 {[%emt 0:00:34]} a4 {[%emt 0:00:08]} 9. N3d2 {[%emt 0:00:59]} Qa5 {[%emt 0:02:20]} 10. Be2 {[%emt 0:02:23]} O-O {[%emt 0:00:48]} 11. O-O {[%emt 0:01:36]} Nc6 {[%emt 0:00:31]} 12. Na3 {[%emt 0:00:57]} Bd8 {[%emt 0:06:35]} 13. Kh1 {[%emt 0:07:56]} Bb6 {[%emt 0:04:16]} 14. Bg5 {[%emt 0:01:20]} Nh5 {[%emt 0:07:20]} 15. Nb5 {[%emt 0:02:15]} f6 {[%emt 1:14:44]} 16. Bh4 Nf4 {[%emt 0:00:00]} 17. Nb1 {[%emt 0:04:08]} Bc5 {[%emt 0:00:00]} 18. N1c3 {[%emt 0:01:49]} Be6 {[%emt 0:00:00]} 19. Rb1 {[%emt 0:04:23]} Nd4 {[%emt 0:00:00]} 20. Nxd4 {[%emt 0:04:33]} Bxd4 {[%emt 0:00:00]} 21. Nd5 {[%emt 0:01:49]} Bxd5 {[%emt 0:00:00]} 22. cxd5 {[%emt 0:02:05]} Rfc8 {[%emt 0:00:00]} 23. Be1 {[%emt 0:02:52]} Qb6 {[%emt 0:00:00]} 24. g3 {[%emt 0:01:59]} Nxe2 {[%emt 0:00:00]} 25. Qxe2 {[%emt 0:00:06]} Rc5 {[%emt 0:00:00]} 26. Bf2 {[%emt 0:11:15]} Bxf2 {[%emt 0:00:00]} 27. Rxf2 {[%emt 0:04:23]} Rac8 {[%emt 0:00:00]} 28. Rd1 {[%emt 0:01:15]} Qc7 {[%emt 0:00:00]} 29. Kg2 {[%emt 0:01:24]} Rc2 {[%emt 0:00:00]} 30. Rd2 {[%emt 0:00:46]} Rc1 {[%emt 0:00:00]} 31. Rd1 {[%emt 0:00:30]} Rc4 {[%emt 0:00:00]} 32. Rd2 {[%emt 0:00:30]} b5 {[%emt 0:00:00]} 33. a3 {[%emt 0:00:30]} Qd7 {[%emt 0:00:00]} 34. Qd3 {[%emt 0:00:30]} Rd4 {[%emt 0:00:00]} 35. Qe3 {[%emt 0:00:30]} Rcc4 {[%emt 0:00:00]} 36. Rxd4 {[%emt 0:00:30]} exd4 {[%emt 0:00:00]} 37. Qd3 {[%emt 0:09:03]} Qc7 {[%emt 0:00:00]} 38. Rd2 {[%emt 0:00:30]} Kf7 {[%emt 0:00:00]} 39. Kf2 {[%emt 0:00:30]} Qc8 {[%emt 0:00:00]} 40. Kg2 {[%emt 0:00:30]} b4 {[%emt 0:00:00]} 41. axb4 {[%emt 0:30:30]} Rxb4 {[%emt 0:08:25]} 42. f4 {[%emt 0:00:00]} Qb7 {[%emt 0:01:38]} 43. Qe2 {[%emt 0:00:00]} g6 {[%emt 0:02:52]} 44. Kh3 {[%emt 0:00:00]} Kg7 {[%emt 0:06:41]} 45. Qg4 {[%emt 0:00:00]} Qe7 {[%emt 0:07:38]} 46. Qe6 {[%emt 0:03:33]} Qxe6+ {[%emt 0:03:11]} 47. dxe6 {[%emt 0:00:05]} f5 {[%emt 0:00:25]} 48. exf5 {[%emt 0:01:53]} gxf5 {[%emt 0:01:08]} 49. g4 {[%emt 0:02:45]} fxg4+ {[%emt 0:02:22]} 50. Kxg4 {[%emt 0:00:22]} Kf6 {[%emt 0:01:28]} 1/2-1/2

[Event "European Womens-ch 2025"]
[Site "Rhodes"]
[Date "2025.04.11"]
[Round "11.37"]
[White "Koridze, Lile"]
[Black "Zimina, Olga"]
[Result "1/2-1/2"]
[Annotator "ChessBase"]
[ECO "D11"]
[WhiteElo "2115"]
[BlackElo "2293"]
[PlyCount "51"]
[EventDate "2025.03.29"]
[EventType "swiss"]
[EventCountry "GRE"]
[SourceTitle "playchess.com"]
[Source "ChessBase"]
[SourceQuality "1"]
[TimeControl "40/5400+30:1800+30"]

1. d4 {[%emt 0:00:02]} d5 {[%emt 0:00:07]} 2. c4 {[%emt 0:00:04]} c6 {[%emt 0:00:07]} 3. Nf3 {[%emt 0:00:04]} Nf6 {[%emt 0:00:05]} 4. e3 {[%emt 0:00:08]} a6 {[%emt 0:00:05]} 5. Nbd2 {[%emt 0:06:03]} Bf5 {[%emt 0:00:18]} 6. Qb3 {[%emt 0:03:32]} Ra7 {[%emt 0:01:51]} 7. Bd3 {[%emt 0:05:39]} Bxd3 {[%emt 0:06:08]} 8. Qxd3 {[%emt 0:00:04]} e6 {[%emt 0:00:09]} 9. O-O {[%emt 0:00:21]} Nbd7 {[%emt 0:01:16]} 10. b3 {[%emt 0:06:12]} Be7 {[%emt 0:05:53]} 11. Bb2 {[%emt 0:02:47]} O-O {[%emt 0:00:20]} 12. e4 {[%emt 0:07:07]} dxe4 {[%emt 0:01:21]} 13. Nxe4 {[%emt 0:00:05]} a5 {[%emt 0:06:12]} 14. Rad1 {[%emt 0:15:40]} Nxe4 {[%emt 0:03:14]} 15. Qxe4 {[%emt 0:00:04]} Nf6 {[%emt 0:00:13]} 16. Qe3 {[%emt 0:08:30]} Qb6 {[%emt 0:00:49]} 17. Ne5 {[%emt 0:02:38]} a4 {[%emt 0:00:38]} 18. Qg3 {[%emt 0:01:37]} axb3 {[%emt 0:00:55]} 19. axb3 {[%emt 0:04:35]} Ra2 {[%emt 0:00:39]} 20. Bc1 {[%emt 0:05:48]} Rd8 {[%emt 0:05:12]} 21. Qd3 {[%emt 0:09:06]} Qa6 {[%emt 0:12:21]} 22. Be3 {[%emt 0:02:53]} h6 {[%emt 0:04:30]} 23. Bxh6 {[%emt 0:09:21]} gxh6 {[%emt 0:01:17]} 24. Qg3+ {[%emt 0:00:03]} Kf8 {[%emt 0:02:15]} 25. Qf4 {[%emt 0:00:06]} Kg7 {[%emt 0:04:13]} 26. Qg3+ {[%emt 0:00:07]} 1/2-1/2

[Event "European Womens-ch 2025"]
[Site "Rhodes"]
[Date "2025.04.11"]
[Round "11.38"]
[White "Smietanska, Wiktoria"]
[Black "Deak-Sala, Emilia"]
[Result "1-0"]
[Annotator "ChessBase"]
[ECO "B47"]
[WhiteElo "2254"]
[BlackElo "2112"]
[PlyCount "71"]
[EventDate "2025.03.29"]
[EventType "swiss"]
[EventCountry "GRE"]
[SourceTitle "playchess.com"]
[Source "ChessBase"]
[SourceQuality "1"]
[TimeControl "40/5400+30:1800+30"]

1. e4 {[%emt 0:00:02]} c5 {[%emt 0:06:09]} 2. Nf3 {[%emt 0:00:06]} e6 {[%emt 0:00:08]} 3. d4 {[%emt 0:00:06]} cxd4 {[%emt 0:00:04]} 4. Nxd4 {[%emt 0:00:07]} Nc6 {[%emt 0:00:03]} 5. Nc3 {[%emt 0:00:10]} Qc7 {[%emt 0:00:03]} 6. Ndb5 {[%emt 0:00:10]} Qb8 {[%emt 0:00:12]} 7. g3 {[%emt 0:00:13]} a6 {[%emt 0:03:39]} 8. Nd4 {[%emt 0:00:11]} Nf6 {[%emt 0:02:27]} 9. Bg2 {[%emt 0:00:19]} Nxd4 {[%emt 0:02:26]} 10. Qxd4 {[%emt 0:00:10]} Bd6 {[%emt 0:00:10]} 11. Be3 {[%emt 0:06:11]} O-O {[%emt 0:05:24]} 12. O-O-O {[%emt 0:02:07]} Be5 {[%emt 0:00:50]} 13. Qd3 {[%emt 0:03:13]} Ng4 {[%emt 0:04:30]} 14. Bd4 {[%emt 0:06:20]} b5 {[%emt 0:02:48]} 15. f4 {[%emt 0:08:40]} Bxd4 {[%emt 0:00:30]} 16. Qxd4 {[%emt 0:00:02]} Qa7 {[%emt 0:02:42]} 17. e5 {[%emt 0:02:58]} Qxd4 {[%emt 0:01:14]} 18. Rxd4 {[%emt 0:00:01]} Rb8 {[%emt 0:00:28]} 19. Ne4 {[%emt 0:03:42]} Bb7 {[%emt 0:08:27]} 20. Rxd7 {[%emt 0:07:37]} Bd5 {[%emt 0:00:05]} 21. Bf3 {[%emt 0:03:50]} Rbc8 {[%emt 0:05:00]} 22. Kb1 {[%emt 0:10:04]} Ne3 {[%emt 0:08:53]} 23. c3 {[%emt 0:07:05]} Nc4 {[%emt 0:02:15]} 24. Rd1 {[%emt 0:06:21]} h6 {[%emt 0:02:30]} 25. b3 {[%emt 0:06:17]} Nb6 {[%emt 0:03:43]} 26. Rd6 {[%emt 0:00:27]} Rb8 {[%emt 0:00:23]} 27. Rd3 {[%emt 0:04:34]} a5 {[%emt 0:00:45]} 28. Nc5 {[%emt 0:02:26]} Bxf3 {[%emt 0:02:24]} 29. Rxf3 {[%emt 0:00:08]} Rfd8 {[%emt 0:03:46]} 30. Rfd3 {[%emt 0:02:06]} Rxd6 {[%emt 0:00:27]} 31. Rxd6 {[%emt 0:01:05]} Nd5 {[%emt 0:00:06]} 32. Kb2 {[%emt 0:00:39]} a4 {[%emt 0:00:50]} 33. f5 {[%emt 0:08:35]} Rc8 {[%emt 0:02:26]} 34. fxe6 {[%emt 0:00:39]} fxe6 {[%emt 0:00:33]} 35. Nxe6 {[%emt 0:02:32]} axb3 {[%emt 0:01:05]} 36. Rxd5 {[%emt 0:00:23]} 1-0

[Event "European Womens-ch 2025"]
[Site "Rhodes"]
[Date "2025.04.11"]
[Round "11.39"]
[White "Jarocka, Liwia"]
[Black "Paasikangas, Johanna"]
[Result "1-0"]
[Annotator "ChessBase"]
[ECO "C50"]
[WhiteElo "2231"]
[BlackElo "2106"]
[PlyCount "125"]
[EventDate "2025.03.29"]
[EventType "swiss"]
[EventCountry "GRE"]
[SourceTitle "playchess.com"]
[Source "ChessBase"]
[SourceQuality "1"]
[TimeControl "40/5400+30:1800+30"]

1. e4 {[%emt 0:00:02]} e5 {[%emt 0:00:07]} 2. Nf3 {[%emt 0:00:11]} Nc6 {[%emt 0:00:13]} 3. Bc4 {[%emt 0:00:08]} Bc5 {[%emt 0:00:21]} 4. d3 {[%emt 0:00:08]} Nf6 {[%emt 0:01:08]} 5. Nc3 {[%emt 0:00:18]} a6 {[%emt 0:01:55]} 6. a4 {[%emt 0:02:14]} d6 {[%emt 0:01:25]} 7. Be3 {[%emt 0:00:52]} Ng4 {[%emt 0:11:09]} 8. Bxc5 {[%emt 0:05:04]} dxc5 {[%emt 0:00:41]} 9. h3 {[%emt 0:02:42]} Nf6 {[%emt 0:00:21]} 10. Nd5 {[%emt 0:00:37]} Be6 {[%emt 0:01:38]} 11. Ne3 {[%emt 0:00:17]} Bxc4 {[%emt 0:10:44]} 12. Nxc4 {[%emt 0:00:41]} Qe7 {[%emt 0:02:33]} 13. O-O {[%emt 0:02:06]} O-O {[%emt 0:00:17]} 14. Ne3 {[%emt 0:03:29]} g6 {[%emt 0:09:55]} 15. Nh2 {[%emt 0:11:22]} Rad8 {[%emt 0:07:51]} 16. Qc1 {[%emt 0:01:00]} Nd4 {[%emt 0:01:07]} 17. Re1 {[%emt 0:00:16]} c6 {[%emt 0:02:00]} 18. Neg4 {[%emt 0:14:52]} Nh5 {[%emt 0:02:33]} 19. g3 {[%emt 0:00:17]} f6 {[%emt 0:07:56]} 20. Kg2 {[%emt 0:01:29]} Qe6 {[%emt 0:00:10]} 21. Ra3 {[%emt 0:02:57]} Qd6 {[%emt 0:05:03]} 22. Qd1 {[%emt 0:11:10]} Kh8 {[%emt 0:00:40]} 23. Ne3 {[%emt 0:02:13]} b5 {[%emt 0:01:13]} 24. axb5 {[%emt 0:00:45]} axb5 {[%emt 0:00:02]} 25. Qg4 {[%emt 0:02:24]} Ng7 {[%emt 0:01:39]} 26. Ra7 {[%emt 0:00:31]} Nde6 {[%emt 0:01:52]} 27. Qh4 {[%emt 0:01:10]} Qd4 {[%emt 0:08:00]} 28. Nhg4 {[%emt 0:05:37]} Nh5 {[%emt 0:10:24]} 29. Nh6 {[%emt 0:03:36]} Rd7 {[%emt 0:04:24]} 30. Nhf5 {[%emt 0:06:37]} Rxa7 {[%emt 0:03:18]} 31. Nxd4 {[%emt 0:00:06]} cxd4 {[%emt 0:00:08]} 32. Nf1 {[%emt 0:00:48]} Ra2 {[%emt 0:01:28]} 33. Rb1 {[%emt 0:00:19]} Nhg7 {[%emt 0:00:53]} 34. Qh6 {[%emt 0:00:54]} c5 {[%emt 0:01:29]} 35. Qc1 {[%emt 0:01:36]} c4 {[%emt 0:00:57]} 36. Nd2 {[%emt 0:00:44]} Nc5 {[%emt 0:01:17]} 37. Ra1 {[%emt 0:03:40]} Rxa1 {[%emt 0:00:14]} 38. Qxa1 {[%emt 0:00:01]} cxd3 {[%emt 0:00:13]} 39. cxd3 {[%emt 0:00:05]} Nge6 {[%emt 0:00:11]} 40. Qa7 {[%emt 0:00:00]} Kg8 {[%emt 0:00:00]} 41. Qe7 {[%emt 0:05:36]} Rf7 {[%emt 0:01:50]} 42. Qe8+ {[%emt 0:00:16]} Kg7 {[%emt 0:00:34]} 43. Qxb5 {[%emt 0:42:50]} Re7 {[%emt 0:10:58]} 44. b4 {[%emt 0:00:00]} Nb7 {[%emt 0:01:34]} 45. Nc4 {[%emt 0:00:00]} Ned8 {[%emt 0:00:38]} 46. Qd5 {[%emt 0:00:00]} Nf7 {[%emt 0:01:33]} 47. b5 {[%emt 0:00:00]} Kf8 {[%emt 0:01:08]} 48. b6 {[%emt 0:00:00]} Nfd8 {[%emt 0:01:26]} 49. f4 {[%emt 0:00:00]} Nf7 {[%emt 0:00:20]} 50. Kf3 {[%emt 0:00:00]} Kg7 {[%emt 0:00:30]} 51. h4 {[%emt 0:00:00]} h5 {[%emt 0:06:08]} 52. Kg2 {[%emt 0:00:00]} Kf8 {[%emt 0:02:53]} 53. Qc6 {[%emt 0:00:00]} Kg7 {[%emt 0:00:15]} 54. Qc8 {[%emt 0:00:00]} Nfd8 {[%emt 0:04:00]} 55. f5 {[%emt 0:00:00]} gxf5 {[%emt 0:01:17]} 56. Qxf5 {[%emt 0:00:00]} Ne6 {[%emt 0:02:26]} 57. Kf1 {[%emt 0:00:00]} Nec5 {[%emt 0:00:46]} 58. Ke2 {[%emt 0:00:00]} Re6 {[%emt 0:01:31]} 59. Qxh5 {[%emt 0:00:00]} Nd7 {[%emt 0:00:37]} 60. Qg4+ {[%emt 0:00:00]} Kf7 {[%emt 0:00:06]} 61. h5 {[%emt 0:00:00]} Nxb6 {[%emt 0:00:11]} 62. Nxb6 {[%emt 0:00:00]} Rxb6 {[%emt 0:00:02]} 63. Qd7+ {[%emt 0:00:00]} 1-0

[Event "European Womens-ch 2025"]
[Site "Rhodes"]
[Date "2025.04.11"]
[Round "11.40"]
[White "Zagorac, Lara"]
[Black "Prado Acebo, Ines"]
[Result "0-1"]
[Annotator "ChessBase"]
[ECO "E11"]
[WhiteElo "2106"]
[BlackElo "2199"]
[PlyCount "160"]
[EventDate "2025.03.29"]
[EventType "swiss"]
[EventCountry "GRE"]
[SourceTitle "playchess.com"]
[Source "ChessBase"]
[SourceQuality "1"]
[TimeControl "40/5400+30:1800+30"]

1. d4 {[%emt 0:00:03]} Nf6 {[%emt 0:00:28]} 2. c4 {[%emt 0:00:10]} e6 {[%emt 0:00:24]} 3. g3 {[%emt 0:00:09]} d5 {[%emt 0:00:07]} 4. Nf3 {[%emt 0:00:06]} Bb4+ {[%emt 0:00:06]} 5. Bd2 {[%emt 0:00:10]} Be7 {[%emt 0:00:05]} 6. Bg2 {[%emt 0:00:09]} O-O {[%emt 0:00:10]} 7. O-O {[%emt 0:00:10]} Nbd7 {[%emt 0:00:08]} 8. Qc2 {[%emt 0:00:42]} Ne4 {[%emt 0:00:08]} 9. Nc3 {[%emt 0:02:16]} Nxd2 {[%emt 0:00:14]} 10. Nxd2 {[%emt 0:01:58]} c6 {[%emt 0:00:08]} 11. e4 {[%emt 0:03:39]} dxe4 {[%emt 0:00:25]} 12. Ncxe4 {[%emt 0:05:42]} f5 {[%emt 0:00:11]} 13. Nc3 {[%emt 0:02:10]} e5 {[%emt 0:00:07]} 14. dxe5 {[%emt 0:12:49]} Nxe5 {[%emt 0:00:11]} 15. Rfe1 {[%emt 0:03:16]} Bf6 {[%emt 0:05:28]} 16. Nf3 {[%emt 0:04:48]} Qd3 {[%emt 0:03:32]} 17. Qe2 {[%emt 0:25:22]} Qxe2 {[%emt 0:00:39]} 18. Rxe2 {[%emt 0:01:25]} Nxc4 {[%emt 0:00:25]} 19. b3 {[%emt 0:01:56]} Nb6 {[%emt 0:08:11]} 20. Rc1 {[%emt 0:01:13]} Bd7 {[%emt 0:05:07]} 21. Na4 {[%emt 0:04:16]} Nxa4 {[%emt 0:02:27]} 22. bxa4 {[%emt 0:00:02]} Rfe8 {[%emt 0:03:04]} 23. Rec2 {[%emt 0:01:08]} Rad8 {[%emt 0:04:39]} 24. Nd2 {[%emt 0:02:07]} Bc8 {[%emt 0:08:03]} 25. Nb3 {[%emt 0:01:16]} Re7 {[%emt 0:08:54]} 26. a5 {[%emt 0:00:58]} a6 {[%emt 0:02:23]} 27. Nc5 {[%emt 0:01:55]} Rde8 {[%emt 0:08:47]} 28. Bf1 {[%emt 0:02:39]} Re1 {[%emt 0:08:07]} 29. Kg2 {[%emt 0:03:41]} Kf8 {[%emt 0:04:40]} 30. h4 {[%emt 0:04:28]} Bd8 {[%emt 0:04:19]} 31. Nb3 {[%emt 0:02:54]} Bc7 {[%emt 0:11:43]} 32. f4 {[%emt 0:01:31]} R1e3 {[%emt 0:00:30]} 33. Kf2 {[%emt 0:00:50]} Bb8 {[%emt 0:00:48]} 34. Rc3 {[%emt 0:04:37]} Ba7 {[%emt 0:00:27]} 35. Kg2 {[%emt 0:00:12]} Be6 {[%emt 0:01:11]} 36. Rxe3 {[%emt 0:07:06]} Bxe3 {[%emt 0:00:35]} 37. Rd1 {[%emt 0:00:30]} Bd5+ {[%emt 0:00:34]} 38. Kh2 {[%emt 0:00:22]} Bf2 {[%emt 0:02:26]} 39. Bg2 {[%emt 0:00:38]} Bc4 {[%emt 0:07:23]} 40. Bf3 {[%emt 0:00:00]} Be2 {[%emt 0:00:00]} 41. Bxe2 {[%emt 0:09:28]} Rxe2 {[%emt 0:02:10]} 42. Rd7 {[%emt 0:02:08]} Re7 {[%emt 0:00:13]} 43. Rd8+ {[%emt 0:00:16]} Kf7 {[%emt 0:00:07]} 44. Kg2 {[%emt 0:00:27]} Be1 {[%emt 0:03:33]} 45. h5 {[%emt 0:01:54]} Bc3 {[%emt 0:10:03]} 46. Kf2 {[%emt 0:02:20]} Rc7 {[%emt 0:01:25]} 47. Rd3 {[%emt 0:01:08]} Bf6 {[%emt 0:01:08]} 48. Nc5 {[%emt 0:00:58]} Be7 {[%emt 0:00:24]} 49. Nd7 {[%emt 0:00:41]} Bb4 {[%emt 0:04:12]} 50. Ne5+ {[%emt 0:00:18]} Ke6 {[%emt 0:00:12]} 51. Nc4 {[%emt 0:03:00]} Rd7 {[%emt 0:00:33]} 52. Re3+ {[%emt 0:00:15]} Kf6 {[%emt 0:00:16]} 53. Rb3 {[%emt 0:01:18]} Bc5+ {[%emt 0:00:23]} 54. Ke2 {[%emt 0:00:17]} Rd4 {[%emt 0:00:15]} 55. Ne5 {[%emt 0:01:35]} Bd6 {[%emt 0:02:34]} 56. Rxb7 {[%emt 0:04:39]} Re4+ {[%emt 0:00:38]} 57. Kf3 {[%emt 0:00:35]} Bxe5 {[%emt 0:00:09]} 58. fxe5+ {[%emt 0:00:02]} Rxe5 {[%emt 0:00:08]} 59. Rb6 {[%emt 0:00:05]} Rxa5 {[%emt 0:00:16]} 60. Rxc6+ {[%emt 0:00:23]} Kg5 {[%emt 0:00:09]} 61. Rc7 {[%emt 0:00:26]} Ra3+ {[%emt 0:00:15]} 62. Kg2 {[%emt 0:00:40]} Rxa2+ {[%emt 0:00:20]} 63. Kh3 {[%emt 0:00:17]} Kh6 {[%emt 0:00:36]} 64. Rc5 {[%emt 0:00:53]} g6 {[%emt 0:00:27]} 65. hxg6 {[%emt 0:00:06]} hxg6 {[%emt 0:00:07]} 66. Rc4 {[%emt 0:02:24]} Kh5 {[%emt 0:01:03]} 67. Rc8 {[%emt 0:00:57]} a5 {[%emt 0:00:30]} 68. Rh8+ {[%emt 0:00:11]} Kg5 {[%emt 0:00:08]} 69. Ra8 {[%emt 0:00:04]} Ra3 {[%emt 0:00:19]} 70. Kh2 {[%emt 0:00:11]} Kg4 {[%emt 0:00:06]} 71. Ra6 {[%emt 0:00:42]} g5 {[%emt 0:00:07]} 72. Rc6 {[%emt 0:00:21]} Ra2+ {[%emt 0:00:11]} 73. Kg1 {[%emt 0:00:09]} Kxg3 {[%emt 0:00:08]} 74. Rc3+ {[%emt 0:00:04]} Kg4 {[%emt 0:00:06]} 75. Kf1 {[%emt 0:00:06]} f4 {[%emt 0:00:05]} 76. Rc5 {[%emt 0:00:20]} f3 {[%emt 0:00:34]} 77. Kg1 {[%emt 0:00:04]} Kf4 {[%emt 0:00:13]} 78. Kf1 {[%emt 0:00:11]} g4 {[%emt 0:00:08]} 79. Rc8 {[%emt 0:00:27]} Kg3 {[%emt 0:00:14]} 80. Rc1 {[%emt 0:00:13]} Rh2 {[%emt 0:00:09]} 0-1

[Event "European Womens-ch 2025"]
[Site "Rhodes"]
[Date "2025.04.11"]
[Round "11.41"]
[White "Hapala, Elisabeth"]
[Black "Schloffer, Jasmin-Denise"]
[Result "1/2-1/2"]
[Annotator "ChessBase"]
[ECO "C54"]
[WhiteElo "2092"]
[BlackElo "2188"]
[PlyCount "22"]
[EventDate "2025.03.29"]
[EventType "swiss"]
[EventCountry "GRE"]
[SourceTitle "playchess.com"]
[Source "ChessBase"]
[SourceQuality "1"]
[TimeControl "40/5400+30:1800+30"]

1. e4 {[%emt 0:00:02]} e5 {[%emt 0:00:05]} 2. Nf3 {[%emt 0:00:05]} Nc6 {[%emt 0:00:07]} 3. Bc4 {[%emt 0:00:08]} Bc5 {[%emt 0:00:20]} 4. c3 {[%emt 0:00:31]} Nf6 {[%emt 0:00:07]} 5. d3 {[%emt 0:00:06]} d6 {[%emt 0:00:38]} 6. Bb3 {[%emt 0:00:57]} a6 {[%emt 0:01:32]} 7. Nbd2 {[%emt 0:01:25]} Ba7 {[%emt 0:01:21]} 8. O-O {[%emt 0:01:02]} O-O {[%emt 0:00:11]} 9. h3 {[%emt 0:00:38]} h6 {[%emt 0:00:29]} 10. Re1 {[%emt 0:00:44]} Nh5 {[%emt 0:00:42]} 11. Nf1 {[%emt 0:00:17]} Qf6 {[%emt 0:00:17]} 1/2-1/2